Cogmind - Beta 17 @@@ ROGUE MODE // 2026.08.04 @ 23:38:41 Player: Suffixing Result: Destroyed by XX-I3B(r) with Ripteeth Performance ------------- Evolutions (1) 500 Regions Visited (5) 1000 Robots Destroyed (89) 445 Value Destroyed (2410) 2410 Prototype IDs (8) 160 Alien Tech Used (0) 0 Bonus (242) 242 TOTAL SCORE: 4757 Bonus ------- High Alert Combat Kills 8 Follower Combat Kills 33 Registered with UFD 300 Friendly Fire -99 Cogmind --------- Core Integrity 0/400 Matter 300/300 Energy 113/160 System Corruption 1% Temperature Warm (179) Movement Core (1450) Ox28 Location -9/Scraptown Parts ------- > --- POWER (1) -------- Light Nuclear Core > --- PROPULSION (2) --- (None) > --- UTILITY (4) ------ Makeshift Microdissipator Network Huge Storage Unit > --- WEAPON (2) ------- (None) > --- INVENTORY (25) --- Heavy Ion Engine Light Treads Light Treads Light Treads Light Treads Improved Treads Armored Wheel Improved Flight Unit Improved Flight Unit Improved Flight Unit Improved Flight Unit Large Storage Unit Melee Analysis Suite Cooled Plasma Cannon Improved Assault Rifle Improved Assault Rifle Improved Assault Rifle Improved Assault Rifle Improved Assault Rifle Improved Assault Rifle Gauss Rifle Rocket Launcher Datajack Plasma Cutter Peak State ------------ > --- POWER ------------ Light Nuclear Core > --- PROPULSION ------- Improved Treads Improved Treads > --- UTILITY ---------- Makeshift Microdissipator Network Huge Storage Unit > --- WEAPON ----------- KN-7UR's Autopenetrator Katana > --- INVENTORY -------- Heavy Ion Engine Light Treads Light Treads Light Treads Light Treads Improved Treads Armored Wheel Improved Flight Unit Improved Flight Unit Improved Flight Unit Improved Flight Unit Large Storage Unit Melee Analysis Suite Cooled Plasma Cannon Improved Assault Rifle Improved Assault Rifle Improved Assault Rifle Improved Assault Rifle Improved Assault Rifle Improved Assault Rifle Gauss Rifle Rocket Launcher Datajack Plasma Cutter [Rating: 29] Favorites ----------- Power Heavy Ion Engine Engine Heavy Ion Engine Power Core Light Nuclear Core Propulsion Improved Treads Treads Improved Treads Leg Aluminum Leg Flight Unit Improved Flight Unit Utility Light Armor Plating Device Improved Heat Sink Storage Huge Storage Unit Protection Light Armor Plating Weapon Improved Assault Rifle Energy Gun KN-7UR's Autopenetrator Energy Cannon Advanced Beam Cannon Ballistic Gun Improved Assault Rifle Launcher Grenade Launcher Slashing Weapon Katana Special Melee Weapon Datajack Build | -11 -10 -9 -9 -9 -9 ------- Run | Yrd Mat Mat Sto Rec Scr Slots Evolved 2 | . . 2 . . . Power . | . . . . . . Propulsion . | . . . . . . Utility 2 | . . 2 . . . Weapon . | . . . . . . Parts Attached 39 | 3 6 8 13 5 4 Power 2 | . . 1 . . 1 Engine 1 | . . 1 . . . Core 1 | . . . . . 1 Reactor . | . . . . . . Propulsion 10 | 2 . 1 6 . 1 Treads 9 | 2 . 1 5 . 1 Leg . | . . . . . . Wheel . | . . . . . . Hover . | . . . . . . Flight 1 | . . . 1 . . Utility 13 | . 3 4 1 4 1 Device 2 | . 1 . . . 1 Storage 2 | . 2 . . . . Processor . | . . . . . . Hackware . | . . . . . . Protection 9 | . . 4 1 4 . Artifact . | . . . . . . Weapon 14 | 1 3 2 6 1 1 Energy Gun 4 | 1 2 . . 1 . Energy Cannon 4 | . . 2 2 . . Ballistic Gun 3 | . . . 3 . . Ballistic Cannon . | . . . . . . Launcher 1 | . 1 . . . . Special Weapon . | . . . . . . Impact Weapon . | . . . . . . Slashing Weapon 1 | . . . 1 . . Piercing Weapon . | . . . . . . Special Melee Weapon 1 | . . . . . 1 Unidentified Prototypes 5 | . . 1 3 1 . Parts Lost 16 | . . 3 3 2 8 Power 1 | . . . . . 1 Propulsion 4 | . . 1 . . 3 Utility 9 | . . 2 3 2 2 Weapon 2 | . . . . . 2 Highest Loss Streak 4 | . . 2 2 1 4 To Critical Strikes 2 | . . . . . 2 Average Backups 21 | 6 8 19 24 25 24 Power 1 | 1 1 1 2 2 1 Propulsion 9 | 4 2 9 12 11 10 Utility 1 | . 1 1 1 2 2 Weapon 6 | 1 3 6 6 7 8 Tool/Special . | . . . . . . Unused Backups 34 | . 4 6 6 1 17 Power 2 | . . 1 . . 1 Propulsion 15 | . 1 . 4 1 9 Utility 4 | . 3 . . . 1 Weapon 12 | . . 5 2 . 5 Tool/Special 1 | . . . . . 1 Average Slot Usage (%) 91 | . 99 93 86 94 86 Engine 11 | . 14 11 11 11 10 Treads 22 | . 28 21 21 22 21 Device 5 | . 12 11 5 . . Storage 11 | . 14 11 11 11 11 Protection 17 | . 1 15 14 27 20 Energy Gun 8 | . 27 7 . . 11 Energy Cannon 5 | . . 14 13 . . Ballistic Gun 8 | . . . 8 21 9 Peak Build Rating 29 | 6 12 20 23 27 29 Average Rating 20 | 6 10 18 20 22 26 On Entrance 15 | 6 6 12 20 20 27 Avg Prop Armor Cover (%) . | . . . . . . Naked Turns . | . . . . . . Heaviest Build 107 | 14 92 107 103 107 103 Greatest Support 46 | 40 40 40 46 46 46 Greatest Overweight (x) 28 | . 2 2 2 2 28 Average Overweight (x) 1 | . . 2 2 2 2 Largest Inventory Capacity 25 | 8 25 25 25 25 25 Average Capacity 23 | 8 16 25 25 25 25 Most Carried 25 | 6 13 25 25 25 25 Average Carried 21 | 4 8 19 24 24 24 Final Capacity 25 | 8 25 25 25 25 25 Final Carried 25 | 3 13 24 25 25 24 Class Distribution -------------------- 79% | Mutant 11% | Commander-Mutant 9% | Scavenger-Mutant Dominant Class ---------------- Mutant | -10/Materials Mutant | -9/Materials Mutant | -9/Storage Commander-Mutant | -9/Recycling Mutant | -9/Scraptown Resources | -11 -10 -9 -9 -9 -9 ----------- Run | Yrd Mat Mat Sto Rec Scr Matter Collected 681 | 169 118 96 170 68 60 Remotely . | . . . . . . Salvage Created 3588 | . 490 1527 988 58 525 Parts 210 | . 30 99 51 3 27 Haulers Intercepted 11 | . 2 5 4 . . Recyclers Shooed 4 | . 1 2 1 . . Parts Field Recycled . | . . . . . . Retrieved Matter . | . . . . . . Parts Self-Destructed 9 | . . . . . 9 Prevented . | . . . . . . Parts Restored . | . . . . . . Kills | -11 -10 -9 -9 -9 -9 ------- Run | Yrd Mat Mat Sto Rec Scr Combat Hostiles Destroyed 67 | . 11 28 18 1 9 Guns 26 | . 11 5 . 1 9 Cannons 38 | . . 21 17 . . Classes Destroyed 12 | . 4 3 2 . 3 Worker 1 | . . . 1 . . Hauler 11 | . 2 5 4 . . Recycler 4 | . . 2 2 . . Mechanic 1 | . . . 1 . . Operator 4 | . 1 1 2 . . Drone 1 | . . . . . 1 Watcher 2 | . . 1 1 . . Swarmer 14 | . 3 3 8 . . Grunt 32 | . 8 17 7 . . Sentry 12 | . . 8 3 1 . Hunter 2 | . . . . . 2 Scrapper 6 | . . . . . 6 Best Kill Streak 4 | . 3 4 4 1 4 Combat Bots Only 4 | . 3 4 4 1 4 Max Kills in Single Turn 2 | . 2 2 2 1 1 Gunslinging 1 | . 1 1 . . . Exploded . | . . . . . . Melee . | . . . . . . Uniques/NPCs Destroyed . | . . . . . . Combat | -11 -10 -9 -9 -9 -9 -------- Run | Yrd Mat Mat Sto Rec Scr Hostile Shots Fired 300 | . 63 85 89 4 59 Missed 76 | . 20 24 23 2 7 Hits 224 | . 43 61 66 2 52 Melee 3 | . . 1 . . 2 Projectile 221 | . 43 60 66 2 50 AOE 2 | . . . . 2 . Critical Strikes 12 | . 2 1 . . 9 Damage Taken 3079 | . 488 725 714 331 821 Core 509 | . 108 143 87 . 171 Absorbed by Shields 60 | . . . . 56 4 Core Remaining (%) 78 | 100 56 . . . . Volleys Fired 206 | . 41 63 69 7 26 Largest 2 | . 2 2 2 2 1 Hottest 136 | . 130 136 136 46 120 Shots Fired 381 | . 82 126 133 14 26 Gun 164 | . 82 26 16 14 26 Cannon 217 | . . 100 117 . . Launcher . | . . . . . . Special . | . . . . . . Kinetic 30 | . . . 16 14 . Thermal 351 | . 82 126 117 . 26 Explosive . | . . . . . . Electromagnetic . | . . . . . . Robot Hit Streak 13 | . 7 13 11 7 8 Robot Miss Streak 6 | . 4 5 6 1 5 Penetration Max 1 | . . . . . 1 Secondary Targets 3 | . 2 1 . . . Max Gunslinging Chain 1 | . 1 1 . . . Shots Hit Robots 241 | . 54 79 71 13 24 Core Hits 159 | . 33 70 28 3 25 Critical Kills 2 | . . 2 . . . Critical Parts Destroyed . | . . . . . . Critical Strikes 4 | . 2 2 . . . Burn 2 | . 2 . . . . Meltdown 2 | . . 2 . . . Melee Attacks 4 | . . . 2 . 2 Impact . | . . . . . . Slashing 3 | . . . 2 . 1 Piercing . | . . . . . . Sneak Attacks 2 | . . . 1 . 1 Combat Hostiles . | . . . . . . Follow-up Attacks . | . . . . . . Damage Inflicted 4665 | . 694 1460 1587 220 704 Guns 2046 | . 673 328 147 194 704 Cannons 2481 | . . 1110 1371 . . Explosions . | . . . . . . Melee 62 | . . . 62 . . Ramming 76 | . 21 22 7 26 . Kinetic 341 | . . . 147 194 . Thermal 4186 | . 673 1438 1371 . 704 Explosive . | . . . . . . Electromagnetic . | . . . . . . Impact . | . . . . . . Slashing 62 | . . . 62 . . Piercing . | . . . . . . Highest Corruption 3 | . 3 . . . 1 Average Corruption 1 | . 2 . . . 1 Corruption Purged . | . . . . . . Corruption Blocked . | . . . . . . Effects 3 | . 3 . . . . Matter Fused 2 | . 2 . . . . Data Loss (minor) 1 | . 1 . . . . Overload Shots . | . . . . . . Overflow Damage 87 | . . 23 64 . . Projectiles 45 | . . 23 22 . . Explosions . | . . . . . . Melee 42 | . . . 42 . . Knockbacks 1 | . . . . 1 . Impact 1 | . . . . 1 . Kinetic . | . . . . . . Secondary . | . . . . . . Self-Inflicted Damage . | . . . . . . Shots . | . . . . . . Rammed 16 | . 6 4 3 3 . Targets Rammed 17 | . 6 4 4 3 . Kicked . | . . . . . . Crushed 1 | . . . 1 . . Highest Temperature 482 | . 240 338 482 117 428 Average Temperature 110 | . 65 78 144 37 153 Received Heat Transfer 936 | . 246 306 90 158 136 Effects 6 | . . . 4 . 2 Energy Bleed 4 | . . . 2 . 2 Interference 1 | . . . 1 . . Short Circuit 1 | . . . 1 . . Siege Activations . | . . . . . . Martial Activations . | . . . . . . Shielding Activations . | . . . . . . Robots Disrupted . | . . . . . . Combat Hostiles . | . . . . . . Robots Corrupted . | . . . . . . Combat Hostiles . | . . . . . . Parts Fried . | . . . . . . Impact Corruptions . | . . . . . . Robots Melted 3 | . . 2 1 . . Combat Hostiles 3 | . . 2 1 . . Parts Melted 11 | . 6 2 1 . 2 Heat Transferred 7576 | . 1965 2413 2479 . 719 Parts Sabotaged . | . . . . . . Parts Stolen . | . . . . . . Parts Stripped . | . . . . . . Power Chain Reactions . | . . . . . . Alert | -11 -10 -9 -9 -9 -9 ------- Run | Yrd Mat Mat Sto Rec Scr Maximum Alert Level 2 | . . 2 1 . . Low Security (%) 81 | 100 100 58 78 100 . Level 1 18 | . . 40 21 . . Level 2 . | . . 1 . . . Level 3 . | . . . . . . Level 4 . | . . . . . . Level 5 . | . . . . . . High Security . | . . . . . . Max Security . | . . . . . . Peak Influence 402 | . 126 402 288 83 . Initial 161 | . . . 161 53 . Average 98 | . 30 155 166 7 . Influence Increases 1984 | . 301 835 569 202 77 Destroy 0b10 Robot/C 1220 | . 220 560 360 40 40 Destroy 0b10 Robot/NC 120 | . 15 45 55 . 5 Destroy Leader 286 | . 44 142 100 . . Allied During Kill 14 | . . . . 12 2 Successful Hack 21 | . 6 8 7 . . Select Force Hacks 150 | . . . . 150 . Disable Machine 45 | . . 15 30 . . Destroy Structure 8 | . 1 5 2 . . Lose Combat Pursuer 120 | . 15 60 15 . 30 Influence Decreases 1984 | . 301 451 815 340 77 Entered New Map 308 | . . . 223 85 . Time Decay 1503 | . 301 421 562 182 37 Lost Part 75 | . . 30 30 . 15 Lost Ally 25 | . . . . . 25 Purge Threat 73 | . . . . 73 . Squads Dispatched 7 | . 2 2 3 . . Investigation 2 | . 1 . 1 . . Extermination . | . . . . . . Reinforcement 5 | . 1 2 2 . . Assault . | . . . . . . Garrison . | . . . . . . Intercept . | . . . . . . Searches Triggered . | . . . . . . Construction Impeded . | . . . . . . Haulers Reinforced . | . . . . . . Active Scanning Responses . | . . . . . . Cargo Convoy Interrupts . | . . . . . . Stealth | -11 -10 -9 -9 -9 -9 --------- Run | Yrd Mat Mat Sto Rec Scr Distress Signals 8 | . 1 2 4 . 1 Communications Jammed . | . . . . . . Distress Signals . | . . . . . . Times Spotted 117 | . 20 42 29 8 18 Peak Tracking Total 8 | . 4 5 5 3 8 Tactical Retreats 7 | . 1 3 1 . 2 Traps | -11 -10 -9 -9 -9 -9 ------- Run | Yrd Mat Mat Sto Rec Scr Traps Triggered 4 | . 4 . . . . Indirectly . | . . . . . . Trap Hack Attempts . | . . . . . . Triggered . | . . . . . . Disarmed . | . . . . . . Reprogrammed . | . . . . . . Reused . | . . . . . . Traps Extracted . | . . . . . . Installed . | . . . . . . Triggered . | . . . . . . Machines | -11 -10 -9 -9 -9 -9 ---------- Run | Yrd Mat Mat Sto Rec Scr Machines Disabled 4 | . . 1 2 . 1 Max in Single Turn 1 | . . 1 1 . 1 Garrison Access 1 | . . . 1 . . Machines Repaired . | . . . . . . Machines Dismantled . | . . . . . . Machines Sabotaged . | . . . . . . Overloaded Fab Kills . | . . . . . . Hacking | -11 -10 -9 -9 -9 -9 --------- Run | Yrd Mat Mat Sto Rec Scr Machines Accessed 11 | . 1 2 2 6 . Terminals 4 | . . 2 1 1 . Fabricators . | . . . . . . Repair Stations 1 | . 1 . . . . Recycling Units 5 | . . . . 5 . Scanalyzers . | . . . . . . Garrison Access 1 | . . . 1 . . Total Hacks 17 | . 3 3 3 8 . Successful 12 | . 1 2 2 7 . Failed 5 | . 2 1 1 1 . Catastrophic 1 | . . . 1 . . Database Lockouts . | . . . . . . Manual 7 | . . 1 . 6 . Terminals 7 | . . 3 2 2 . Fabricators . | . . . . . . Repair Stations 3 | . 3 . . . . Recycling Units 6 | . . . . 6 . Scanalyzers . | . . . . . . Garrison Access 1 | . . . 1 . . Terminal Hacks 5 | . . 2 1 2 . Prototype ID Bank 1 | . . 1 . . . Open Door 1 | . . . 1 . . Branch Access Points 1 | . . 1 . . . Unreport Threat 1 | . . . . 1 . Hauler Manifests 1 | . . . . 1 . Fabricator Hacks . | . . . . . . Repair Station Hacks 1 | . 1 . . . . Refit 1 | . 1 . . . . Recycling Unit Hacks . | . . . . . . Scanalyzer . | . . . . . . Garrison Access Hacks 1 | . . . 1 . . Seal Access 1 | . . . 1 . . Unauthorized Hacks 5 | . . . . 5 . Terminals . | . . . . . . Fabricators . | . . . . . . Repair Stations . | . . . . . . Recycling Units 5 | . . . . 5 . Tunnel 5 | . . . . 5 . Scanalyzers . | . . . . . . Garrison Access . | . . . . . . Data Cores Recovered . | . . . . . . Used . | . . . . . . Hacking Detections 3 | . 1 . 1 1 . Full Trace Events 1 | . . . 1 . . Feedback Events . | . . . . . . Feedback Blocked . | . . . . . . Robot Schematics Acquired . | . . . . . . Robots Built . | . . . . . . Authchips . | . . . . . . Time . | . . . . . . Total Robot Build Rating . | . . . . . . Part Schematics Acquired . | . . . . . . Parts Built . | . . . . . . Authchips . | . . . . . . Time . | . . . . . . Total Part Build Rating . | . . . . . . Part Studies Acquired . | . . . . . . Parts Repaired . | . . . . . . Time . | . . . . . . Parts Recycled . | . . . . . . Recycled Matter . | . . . . . . Retrieved Matter . | . . . . . . Retrieved Components . | . . . . . . Parts Scanalyzed . | . . . . . . Part Schematics Acquired . | . . . . . . Parts Damaged . | . . . . . . Bothacking | -11 -10 -9 -9 -9 -9 ------------ Run | Yrd Mat Mat Sto Rec Scr Used RIF Installer . | . . . . . . Robots Hacked 1 | . . . . . 1 Non-combat . | . . . . . . Combat 1 | . . . . . 1 Robot Hacks Applied 1 | . . . . . 1 parse_system 1 | . . . . . 1 Relay Couplers Released . | . . . . . . Fabnet Peak Effective % . | . . . . . . Robots Rewired 6 | . . . . 6 . Allies Hacked . | . . . . . . Hacks Repelled . | . . . . . . Allies | -11 -10 -9 -9 -9 -9 -------- Run | Yrd Mat Mat Sto Rec Scr Total Allies 6 | . . . . 6 . Largest Group 6 | . . . . 6 2 Highest-Rated Group 99 | . . . . 99 48 Highest-Rated Ally 27 | . . . . 27 27 Total Orders . | . . . . . . Ally Attacks 6 | . . . . 4 2 Total Damage 90 | . . . . 64 26 Kills 1 | . . . . 1 . Allies Corrupted . | . . . . . . Allies Melted . | . . . . . . Intel | -11 -10 -9 -9 -9 -9 ------- Run | Yrd Mat Mat Sto Rec Scr Active Infowar (turns) . | . . . . . . Robot Analysis Total . | . . . . . . Derelict Logs Recovered . | . . . . . . Drone Launches . | . . . . . . Drone Recoveries . | . . . . . . Exploration | -11 -10 -9 -9 -9 -9 ------------- Run | Yrd Mat Mat Sto Rec Scr Turns Passed 9877 | 7 1344 2191 1674 1613 3048 Spaces Moved 2902 | 1 532 601 424 462 882 Core 1 | . . . . . 1 Treads 2901 | 1 532 601 424 462 881 Legs . | . . . . . . Wheels . | . . . . . . Hover . | . . . . . . Flight . | . . . . . . Fastest Speed 160 | 160 160 320 320 320 240 Average Speed 301 | 160 219 320 320 320 321 Slowest Speed 1450 | 160 320 320 320 320 1450 Overloaded Moves . | . . . . . . Propulsion Burnouts . | . . . . . . Robots Hopped . | . . . . . . Potential Cave-ins . | . . . . . . Cave-ins Triggered . | . . . . . . Exploration Rate (%) 60 | 2 88 66 58 92 54 Regions Visited 5 Branch Regions 3 Pre-discovered Areas 5 | . . . . 5 . Known Exits Taken 1 | . . 1 . . . Unknown Exits Taken 4 | 1 1 . 1 1 . Scrap Searched 1 | . . . . . 1 Spaces Dug . | . . . . . . Terrain Destroyed 2 | . . . . . 2 Melee . | . . . . . . Projectile . | . . . . . . AOE . | . . . . . . Terrain Rammed . | . . . . . . Walls Destroyed . | . . . . . . Machines Disabled . | . . . . . . Actions | -11 -10 -9 -9 -9 -9 --------- Run | Yrd Mat Mat Sto Rec Scr Total 3635 | 6 624 738 609 577 1081 Wait 314 | . 18 31 61 41 163 Move 2897 | . 531 600 423 461 882 Hop . | . . . . . . Pick Up 59 | . 16 24 16 1 2 Fast Attach 7 | . . . 4 3 . Attach 11 | . 2 5 1 . 3 Detach . | . . . . . . Swap 24 | 3 4 3 9 2 3 Drop 39 | 3 6 8 20 2 . Fire 206 | . 41 63 69 7 26 Melee 4 | . . . 2 . 2 Ram . | . . . . . . Kick . | . . . . . . Crush 17 | . 6 4 4 3 . Escape Stasis . | . . . . . . Rewire 57 | . . . . 57 . Trap . | . . . . . . Miscellaneous . | . . . . . . Route ------- -11/Scrapyard -10/Materials (discovered 5 exits: *Mat x3 / [*Min x2]) -9/Materials (discovered 7 exits: [*Mat x3] / Min x2 / *Sto x2) -9/Storage -9/Recycling (discovered 2 exits: [*Fac] / [*Scr]) -9/Scraptown (discovered 1 exit: [*Fac]) History --------- Turn | Location | Event 8 | -11/Scrapyard | Discovered new exit (range 0) 8 | -11/Scrapyard | Entered Materials 310 | -10/Materials | Build established: Mutant 313 | -10/Materials | Discovered new exit (range 12) 404 | -10/Materials | Discovered new exit (range 16) 483 | -10/Materials | Discovered new exit (range 13) 865 | -10/Materials | Discovered new exit (range 8) 1180 | -10/Materials | Discovered new exit (range 8) 1352 | -10/Materials | Entered another Materials area 1352 | -9/Materials | Evolved 2 slots: Utility x2 1525 | -9/Materials | Identified exit to Mines 1525 | -9/Materials | Identified exit to Storage 2234 | -9/Materials | Discovered new exit (range 11) 2829 | -9/Materials | Discovered new exit (range 4) 3384 | -9/Materials | Discovered new exit (range 9) 3543 | -9/Materials | Entered Storage 3696 | -9/Storage | Build established: Scavenger-Mutant 4505 | -9/Storage | Met 01-MTF 4627 | -9/Storage | Build established: Mutant 4691 | -9/Storage | Discovered new exit (range 8) 4951 | -9/Storage | Core integrity fell below 50% 5217 | -9/Storage | Entered Recycling 5217 | -9/Recycling | Accompanied by 1 ally (01-MTF) 5892 | -9/Recycling | Build established: Commander-Mutant 6503 | -9/Recycling | Discovered new exit (range 11) 6703 | -9/Recycling | Scanned before Scraplab entrance 6753 | -9/Recycling | Found Prototype Energy Gun 6754 | -9/Recycling | Identified KN-7UR's Autopenetrator 6764 | -9/Recycling | Lost 4 allies 6774 | -9/Recycling | Entered Scraplab 6800 | -9/Recycling | Discovered new exit (range 3) 6830 | -9/Recycling | Entered Scraptown 6830 | -9/Scraptown | Accompanied by 2 allies 7022 | -9/Scraptown | Build established: Mutant 7203 | -9/Scraptown | Visited Cyclists 7283 | -9/Scraptown | Visited Fellowship of the Rings 7331 | -9/Scraptown | Visited Junk Repository 7453 | -9/Scraptown | Visited UFD Registry 7453 | -9/Scraptown | Registered with UFD as "Microeater" 7520 | -9/Scraptown | Visited Botcube Research 7638 | -9/Scraptown | Visited Science Guys 7680 | -9/Scraptown | Visited Scrap Suit Storage 7721 | -9/Scraptown | Visited Derelict Rescue Squad 7757 | -9/Scraptown | Visited Modified Component R&D 8413 | -9/Scraptown | Visited Chapter 10 8786 | -9/Scraptown | Visited Observation Area 9360 | -9/Scraptown | Discovered new exit (range 3) 9595 | -9/Scraptown | Attacked by Scraptown defenders 9871 | -9/Scraptown | Core integrity fell below 20% 9878 | -9/Scraptown | Destroyed by XX-I3B(r) with Ripteeth Last Messages --------------- 09875_ Penetrated by Slug. 09875_ Slug penetrates 3H-85X(p). 09875_ 3H-85X(p) destroyed. 09875_ Penetrated by Slug. 09875_ Thermabolt penetrates 0bJail. 09875_ Thermabolt penetrates Optimus. 09875_ Thermabolt penetrates Earth. 09876_ XX-I3B(r) follow-up attacks with Ripteeth. 09877_ Katana destroyed. 09877_ Critical hit (Destroy). 09877_ Imp. Treads destroyed. 09877_ HV Slug penetrates 0bJail. 09877_ Penetrated by HV Slug. 09877_ Critical hit (Destroy). 09877_ KN-7UR's Autopenetrator destroyed. 09877_ HV Slug penetrates 0bJail. 09877_ Penetrated by HV Slug. 09878_ YJ-0AV(h): "You're not making it out here alive!" Map ----- +----------------------------------------------------+ | ?????????????????????????????????????????????????? | | ?????????????????????????????????????????????????? | | ?????????????????????????????????????????????????? | | ?????????????????????????????????????????????????? | | ?????????????????????????????????????????????????? | | ?????????????????????????????????????????????????? | | ?????????????????????????????????????????????????? | | ?????????????????????????????????????????????????? | | ?????????????????????????????????????????????????? | | ?????????????????????????????????????????????????? | | ?????????????????????????????????????????????????? | | ?????????????????????????????????????????????????? | | ?????????????????????????????????????????????????? | | ?????????????????????????????????????????????????? | | ????????????????????????????????????????????????#" | | ??????????????????????????????????????????##""|##! | | ??????????????????????????????????????? | | ??????????????????????????????????????? | | ????????????????????????????????????????????###### | | ?????????????????????##???##?????????????????????? | | ????????????????????##"###=####??????????????????? | | ????????????????????#""==!["""#??????????????##### | | ????????????????????#" !=[%! "#??????????????#"""" | | ???#????????????????#" ""3"" "#????#########?# | | #?? ????????????????#" "!%r"h"#???? #?#"" | | #?# ?" ?????????????#" "%@*=!"#??#? #?#"" | | #?# ? ???????????#" "%*="h"#??? #?#"""" | | #?# " ??????????#" "!!!"!!#??? #?#"" " | | #?# " ??????????#" """"" ""#??? #?#"""" | | #?# " ??????????#" "# #??? ??#"" | | #?# "" ???????????#"" ## #??? ???#" | | #?? """"???????????# #?##???? ????# | | #??# ?????????????####### ###???????# #????##### | | #### ##########???????##### ########### ########## | | #???????#"""" """"""""""" """""""""" | | #???????#" | | #???????#" | | #???????#" | | #???????#" | | #### #????####" | | ?# #????"""" """"""""""""""""""""" | | # #????"""" """"""""""""""""""""" | | ""# #????"""" ""###### ########### | | $"# #????"""" ""# ##???? | | ""# #????"""" ""# X"#???? | | # ###??"""" ""# "" "" ##???? | | ""# ""#"#"""" ""# "" "" X"#???? | | "# """"#"""" ""# " " ###### | | ""# ""#######" "" "" | | ###?# ###?????#" "" "" | +----------------------------------------------------+ Best States ------------- Heat Dissipation 42 Energy Generation 14 Energy Capacity 280 Matter Stores 300 Matter Capacity 300 Sight Range 16 Terrain Scan Density 10 Armor Coverage 525 Evasion (%) 40 Recoil Reduction 2 Item Schematics ----------------- None Robot Schematics ------------------ None Fabricated ------------ Nothing Repaired ---------- Nothing Studied --------- None Alien Tech Used ----------------- None Achievements -------------- Frienemies Challenges ------------ None Game ------ Seed LightpackBombardmentFlamer Manual? 0 Play Time 00:29:47 Cumulative 71.5 hours Start 2026.08.04 @ 22:08:32 End 2026.08.04 @ 23:38:41 Sessions 1 Manual Loads 0 Difficulty Rogue Special Mode None Game No. 306 Rogue 261 Adventurer 45 Explorer 0 Win Type - Total 3 Types 3/0/0/0/0/0/0/0/0/0 Lore% 68 Gallery% 48 Achievement% 48 Wizard Run 0 Options --------- Layout 1 ASCII 0 Keyboard 0 Movement Numpad Keybinds 0 Fullscreen 1 Font 24/Smallcaps Map View 50x35 Zoom Use 0% Tactical HUD 1 Map Filters NONE Filters NONE Steam 1 RUN: 46d1a478-9a13-48d3-92a5-a1586896a244